[Event "Early-Titled-Tuesday-Blitz-February-27-2024"]
[Site "Chess.com"]
[Date "2024.02.27"]
[Round "7"]
[White "Road2GM3000"]
[Black "bescmelasti"]
[Result "0-1"]
[WhiteElo "2437"]
[BlackElo "2637"]
[TimeControl "180+1"]
[EndTime "9:15:38 PST"]
[Termination "bescmelasti won by resignation"]

1. d4 {[%clk 0:03:00.9]} 1... Nf6 {[%clk 0:02:59.3]} 2. c4 {[%clk 0:03:00.8]}
2... e6 {[%clk 0:02:59.5]} 3. Nc3 {[%clk 0:03:01.3]} 3... d5 {[%clk 0:02:56.6]}
4. cxd5 {[%clk 0:02:52.3]} 4... exd5 {[%clk 0:02:57.5]} 5. Bg5 {[%clk
0:02:52.7]} 5... c6 {[%clk 0:02:57.7]} 6. e3 {[%clk 0:02:53.4]} 6... Be7 {[%clk
0:02:57.4]} 7. Bd3 {[%clk 0:02:54]} 7... h6 {[%clk 0:02:57.8]} 8. Bh4 {[%clk
0:02:54.1]} 8... O-O {[%clk 0:02:57.2]} 9. Qc2 {[%clk 0:02:54.8]} 9... a5 {[%clk
0:02:56]} 10. Nge2 {[%clk 0:02:54.7]} 10... Na6 {[%clk 0:02:56.3]} 11. a3 {[%clk
0:02:54.5]} 11... Nc7 {[%clk 0:02:56.8]} 12. h3 {[%clk 0:02:53]} 12... Re8
{[%clk 0:02:57]} 13. Rg1 {[%clk 0:02:52.5]} 13... Ne4 {[%clk 0:02:47.2]} 14.
Bxe4 {[%clk 0:02:29.6]} 14... Bxh4 {[%clk 0:02:35.4]} 15. Bd3 {[%clk 0:02:28.3]}
15... b5 {[%clk 0:01:40.2]} 16. g3 {[%clk 0:02:20.1]} 16... Bf6 {[%clk
0:01:26.4]} 17. h4 {[%clk 0:02:17.6]} 17... Bg4 {[%clk 0:01:17.9]} 18. Kf1
{[%clk 0:02:17.3]} 18... Bh3+ {[%clk 0:01:17.1]} 19. Ke1 {[%clk 0:02:17.6]}
19... Qd7 {[%clk 0:01:16.9]} 20. Rd1 {[%clk 0:02:10.8]} 20... Bg4 {[%clk
0:00:49.2]} 21. Kf1 {[%clk 0:02:02.7]} 21... Bh3+ {[%clk 0:00:48.6]} 22. Ke1
{[%clk 0:02:03]} 22... g6 {[%clk 0:00:47.4]} 23. Rh1 {[%clk 0:02:03.3]} 23...
Bg4 {[%clk 0:00:44.4]} 24. Kf1 {[%clk 0:02:03.3]} 24... Bf3 {[%clk 0:00:44.6]}
25. Rh2 {[%clk 0:02:02.4]} 25... Ne6 {[%clk 0:00:42.2]} 26. Re1 {[%clk
0:02:01.9]} 26... b4 {[%clk 0:00:38.3]} 27. axb4 {[%clk 0:02:01.5]} 27... axb4
{[%clk 0:00:39.2]} 28. Na4 {[%clk 0:02:02]} 28... Qa7 {[%clk 0:00:30]} 29. Nc5
{[%clk 0:02:01.2]} 29... Nxc5 {[%clk 0:00:30]} 30. dxc5 {[%clk 0:02:01]} 30...
b3 {[%clk 0:00:28.8]} 31. Qb1 {[%clk 0:02:00.6]} 31... Qxc5 {[%clk 0:00:26.7]}
32. Rc1 {[%clk 0:01:50.4]} 32... Qd6 {[%clk 0:00:25.2]} 33. Nf4 {[%clk
0:01:50.3]} 33... Be5 {[%clk 0:00:17.5]} 34. h5 {[%clk 0:01:47.5]} 34... g5
{[%clk 0:00:17]} 35. Nh3 {[%clk 0:01:41.8]} 35... Ra2 {[%clk 0:00:16.5]} 36. Ng1
{[%clk 0:01:38.7]} 36... Rxb2 {[%clk 0:00:16.2]} 37. Nxf3 {[%clk 0:01:38.1]}
37... Rxb1 {[%clk 0:00:16.3]} 38. Rxb1 {[%clk 0:01:39]} 38... b2 {[%clk
0:00:15.4]} 39. Kg2 {[%clk 0:01:37]} 39... Ra8 {[%clk 0:00:14.4]} 40. Rhh1
{[%clk 0:01:37.3]} 40... Ra1 {[%clk 0:00:13.8]} 41. Rhd1 {[%clk 0:01:37.7]}
41... Rxb1 {[%clk 0:00:13.7]} 42. Rxb1 {[%clk 0:01:37.8]} 42... Bf6 {[%clk
0:00:14.6]} 43. Nd4 {[%clk 0:01:36.9]} 43... Bxd4 {[%clk 0:00:12]} 44. exd4
{[%clk 0:01:37.8]} 44... Qb4 {[%clk 0:00:12.9]} 45. Kf3 {[%clk 0:01:37.3]} 45...
Qxd4 {[%clk 0:00:13]} 46. Ke2 {[%clk 0:01:38.1]} 46... c5 {[%clk 0:00:13.2]} 47.
Rd1 {[%clk 0:01:38.6]} 47... c4 {[%clk 0:00:10.3]} 48. Bb1 {[%clk 0:01:37.2]}
48... Qe5+ {[%clk 0:00:07.8]} 49. Kf1 {[%clk 0:01:37.2]} 49... d4 {[%clk
0:00:06]} 50. Re1 {[%clk 0:01:37.9]} 50... Qd5 {[%clk 0:00:03.9]} 51. Re8+
{[%clk 0:01:37.9]} 51... Kg7 {[%clk 0:00:04.2]} 52. Re7 {[%clk 0:01:38.3]} 52...
Qh1+ {[%clk 0:00:04.2]} 53. Ke2 {[%clk 0:01:38.3]} 53... Qxb1 {[%clk 0:00:04.4]}
0-1

[Event "Early-Titled-Tuesday-Blitz-February-27-2024"]
[Site "Chess.com"]
[Date "2024.02.27"]
[Round "7"]
[White "Misterfox120"]
[Black "Pikku_Myy73"]
[Result "0-1"]
[WhiteElo "2423"]
[BlackElo "2292"]
[TimeControl "180+1"]
[EndTime "9:15:40 PST"]
[Termination "Pikku_Myy73 won by resignation"]

1. d4 {[%clk 0:03:00.9]} 1... d5 {[%clk 0:02:57.3]} 2. Nf3 {[%clk 0:02:58.1]}
2... Nf6 {[%clk 0:02:56.2]} 3. Bf4 {[%clk 0:02:56.4]} 3... c5 {[%clk 0:02:55]}
4. e3 {[%clk 0:02:56.5]} 4... Nc6 {[%clk 0:02:55.2]} 5. Nbd2 {[%clk 0:02:56.8]}
5... e6 {[%clk 0:02:54]} 6. c3 {[%clk 0:02:56.2]} 6... Bd6 {[%clk 0:02:54.5]} 7.
Bg3 {[%clk 0:02:54.3]} 7... O-O {[%clk 0:02:53.3]} 8. Bd3 {[%clk 0:02:51.7]}
8... b6 {[%clk 0:02:53]} 9. Qe2 {[%clk 0:02:49.4]} 9... Qc7 {[%clk 0:02:52.8]}
10. Bxd6 {[%clk 0:02:37.9]} 10... Qxd6 {[%clk 0:02:52.6]} 11. e4 {[%clk
0:02:36.4]} 11... Qe7 {[%clk 0:02:21]} 12. e5 {[%clk 0:02:27]} 12... Nd7 {[%clk
0:02:20.4]} 13. h4 {[%clk 0:02:25.4]} 13... cxd4 {[%clk 0:02:14.3]} 14. cxd4
{[%clk 0:01:44.6]} 14... f5 {[%clk 0:01:34]} 15. exf6 {[%clk 0:01:01.9]} 15...
Qxf6 {[%clk 0:01:32.7]} 16. Ng5 {[%clk 0:00:37.4]} 16... Nxd4 {[%clk 0:01:09.3]}
17. Bxh7+ {[%clk 0:00:33.8]} 17... Kh8 {[%clk 0:01:09.5]} 18. Qh5 {[%clk
0:00:17.1]} 18... Qh6 {[%clk 0:00:57.8]} 19. Qg4 {[%clk 0:00:17.1]} 19... e5
{[%clk 0:00:41.7]} 20. Bb1 {[%clk 0:00:05.3]} 20... Nf6 {[%clk 0:00:33.5]} 21.
Qg3 {[%clk 0:00:05.7]} 21... Ng4 {[%clk 0:00:30.2]} 22. O-O {[%clk 0:00:04.9]}
22... Ne2+ {[%clk 0:00:29.1]} 0-1

[Event "Early-Titled-Tuesday-Blitz-February-27-2024"]
[Site "Chess.com"]
[Date "2024.02.27"]
[Round "7"]
[White "ajian"]
[Black "nekotyanof"]
[Result "0-1"]
[WhiteElo "2481"]
[BlackElo "2635"]
[TimeControl "180+1"]
[EndTime "9:15:42 PST"]
[Termination "nekotyanof won by resignation"]

1. d4 {[%clk 0:02:59.9]} 1... Nf6 {[%clk 0:03:00.2]} 2. c4 {[%clk 0:03:00.2]}
2... g6 {[%clk 0:03:00.9]} 3. Nc3 {[%clk 0:02:59.8]} 3... d5 {[%clk 0:03:01.5]}
4. cxd5 {[%clk 0:02:58.9]} 4... Nxd5 {[%clk 0:03:02.4]} 5. e4 {[%clk 0:02:59.4]}
5... Nxc3 {[%clk 0:03:03]} 6. bxc3 {[%clk 0:03:00.3]} 6... Bg7 {[%clk
0:03:03.6]} 7. Bc4 {[%clk 0:03:00.6]} 7... c5 {[%clk 0:03:03.9]} 8. Ne2 {[%clk
0:03:01.1]} 8... O-O {[%clk 0:03:04.6]} 9. O-O {[%clk 0:03:01.3]} 9... Nc6
{[%clk 0:03:04.9]} 10. Be3 {[%clk 0:03:02.1]} 10... Bg4 {[%clk 0:03:02.8]} 11.
f3 {[%clk 0:03:02.1]} 11... Na5 {[%clk 0:03:03.5]} 12. Bb3 {[%clk 0:03:00.1]}
12... Bd7 {[%clk 0:02:57.3]} 13. Rb1 {[%clk 0:02:43.2]} 13... cxd4 {[%clk
0:02:17.7]} 14. cxd4 {[%clk 0:02:42.4]} 14... Nxb3 {[%clk 0:02:17.5]} 15. Qxb3
{[%clk 0:02:41.7]} 15... b6 {[%clk 0:02:17]} 16. Rfd1 {[%clk 0:02:31.7]} 16...
Rc8 {[%clk 0:02:08.9]} 17. d5 {[%clk 0:02:26.6]} 17... Qc7 {[%clk 0:02:05.5]}
18. Rbc1 {[%clk 0:02:20.9]} 18... Qb7 {[%clk 0:02:04.8]} 19. Nd4 {[%clk
0:02:14.7]} 19... Qa6 {[%clk 0:02:00.8]} 20. Nc6 {[%clk 0:01:58.4]} 20... Rfe8
{[%clk 0:01:57.9]} 21. Kf2 {[%clk 0:01:52.2]} 21... e6 {[%clk 0:01:51.9]} 22. a4
{[%clk 0:01:41]} 22... exd5 {[%clk 0:01:50.5]} 23. exd5 {[%clk 0:01:40.2]} 23...
h5 {[%clk 0:01:41.9]} 24. Re1 {[%clk 0:01:34.6]} 24... Qb7 {[%clk 0:01:35.6]}
25. Qb5 {[%clk 0:01:11.4]} 25... h4 {[%clk 0:01:26.4]} 26. a5 {[%clk 0:01:08]}
26... Be5 {[%clk 0:01:17]} 27. f4 {[%clk 0:00:59.6]} 27... Bc7 {[%clk
0:01:15.5]} 28. Bd2 {[%clk 0:00:45.5]} 28... Bd6 {[%clk 0:01:12.7]} 29. Kg1
{[%clk 0:00:34.8]} 29... Rxe1+ {[%clk 0:01:06.9]} 30. Rxe1 {[%clk 0:00:31.5]}
30... Bxc6 {[%clk 0:01:06]} 31. dxc6 {[%clk 0:00:31]} 31... Qxc6 {[%clk
0:01:06.3]} 32. Qxc6 {[%clk 0:00:24.3]} 32... Rxc6 {[%clk 0:01:07.2]} 33. axb6
{[%clk 0:00:22.7]} 33... axb6 {[%clk 0:01:08.1]} 34. Rb1 {[%clk 0:00:19.8]}
34... Bc5+ {[%clk 0:01:07.9]} 35. Kf1 {[%clk 0:00:20.3]} 35... Rd6 {[%clk
0:01:08.8]} 36. Be1 {[%clk 0:00:18.6]} 36... h3 {[%clk 0:01:08.8]} 37. gxh3
{[%clk 0:00:18.5]} 37... Rd3 {[%clk 0:01:09.3]} 38. Bf2 {[%clk 0:00:17.5]} 38...
Rf3 {[%clk 0:01:09]} 39. Rb2 {[%clk 0:00:15.4]} 39... Rxf4 {[%clk 0:01:07.9]}
40. Kg2 {[%clk 0:00:15.1]} 40... Rxf2+ {[%clk 0:01:08.5]} 41. Rxf2 {[%clk
0:00:15.6]} 41... Bxf2 {[%clk 0:01:09.4]} 42. Kxf2 {[%clk 0:00:16.3]} 42... Kh7
{[%clk 0:01:10.3]} 0-1

[Event "Early-Titled-Tuesday-Blitz-February-27-2024"]
[Site "Chess.com"]
[Date "2024.02.27"]
[Round "7"]
[White "GodzillaChessYoutube"]
[Black "Genghis_K"]
[Result "0-1"]
[WhiteElo "2674"]
[BlackElo "2936"]
[TimeControl "180+1"]
[EndTime "9:15:44 PST"]
[Termination "Genghis_K won on time"]

1. d4 {[%clk 0:03:00.9]} 1... Nf6 {[%clk 0:02:53.7]} 2. Bf4 {[%clk 0:03:00.4]}
2... d5 {[%clk 0:02:52.9]} 3. e3 {[%clk 0:03:00.5]} 3... c5 {[%clk 0:02:53.4]}
4. Nf3 {[%clk 0:02:51.5]} 4... e6 {[%clk 0:02:50.4]} 5. c3 {[%clk 0:02:49.5]}
5... Bd6 {[%clk 0:02:50]} 6. Bg3 {[%clk 0:02:49.2]} 6... O-O {[%clk 0:02:48.7]}
7. Nbd2 {[%clk 0:02:45.1]} 7... Qc7 {[%clk 0:02:48.5]} 8. dxc5 {[%clk 0:02:41]}
8... Qxc5 {[%clk 0:02:48.1]} 9. Bd3 {[%clk 0:02:41.1]} 9... Nbd7 {[%clk
0:02:46.3]} 10. Qe2 {[%clk 0:02:35.1]} 10... e5 {[%clk 0:02:39.2]} 11. e4 {[%clk
0:02:33.8]} 11... dxe4 {[%clk 0:02:35.9]} 12. Nxe4 {[%clk 0:02:17.4]} 12... Nxe4
{[%clk 0:02:30.7]} 13. Bxe4 {[%clk 0:02:01.2]} 13... Nf6 {[%clk 0:01:44.5]} 14.
Bc2 {[%clk 0:01:56.1]} 14... e4 {[%clk 0:01:37.7]} 15. Nd4 {[%clk 0:01:34.7]}
15... Re8 {[%clk 0:01:25.8]} 16. O-O-O {[%clk 0:01:24.4]} 16... Bg4 {[%clk
0:01:25.1]} 17. Qd2 {[%clk 0:00:24.8]} 17... Bxg3 {[%clk 0:01:18.1]} 18. hxg3
{[%clk 0:00:21.7]} 18... Bxd1 {[%clk 0:01:18.4]} 19. Rxd1 {[%clk 0:00:19.6]}
19... e3 {[%clk 0:01:16.2]} 20. fxe3 {[%clk 0:00:19.4]} 20... Qg5 {[%clk
0:01:16.7]} 21. Nf5 {[%clk 0:00:17.7]} 21... g6 {[%clk 0:01:13.7]} 22. Nd6
{[%clk 0:00:17.8]} 22... Re7 {[%clk 0:01:11.3]} 23. Nc4 {[%clk 0:00:16.6]} 23...
Qxg3 {[%clk 0:01:09.9]} 24. Qd4 {[%clk 0:00:14.8]} 24... Qg5 {[%clk 0:01:07.3]}
25. Kb1 {[%clk 0:00:14]} 25... Rd7 {[%clk 0:01:05.6]} 26. Qe5 {[%clk 0:00:04.5]}
26... Rxd1+ {[%clk 0:01:01]} 27. Bxd1 {[%clk 0:00:04.8]} 27... Qxe5 {[%clk
0:01:01.5]} 28. Nxe5 {[%clk 0:00:05.6]} 28... Re8 {[%clk 0:01:02.1]} 29. Nc4
{[%clk 0:00:06.1]} 29... b5 {[%clk 0:00:57.8]} 30. Nd6 {[%clk 0:00:05.9]} 30...
Rd8 {[%clk 0:00:54.6]} 0-1

[Event "Early-Titled-Tuesday-Blitz-February-27-2024"]
[Site "Chess.com"]
[Date "2024.02.27"]
[Round "7"]
[White "Zohid6"]
[Black "Aygehovit1992"]
[Result "1-0"]
[WhiteElo "2862"]
[BlackElo "2685"]
[TimeControl "180+1"]
[EndTime "9:15:48 PST"]
[Termination "Zohid6 won by resignation"]

1. e4 {[%clk 0:03:00.9]} 1... c5 {[%clk 0:02:55]} 2. Nf3 {[%clk 0:03:00.1]} 2...
e6 {[%clk 0:02:55.1]} 3. c3 {[%clk 0:02:59.3]} 3... d5 {[%clk 0:02:54.8]} 4. e5
{[%clk 0:02:59.6]} 4... d4 {[%clk 0:02:54.9]} 5. Bd3 {[%clk 0:02:59]} 5... Bd7
{[%clk 0:02:54.8]} 6. O-O {[%clk 0:02:54.7]} 6... Bc6 {[%clk 0:02:54.8]} 7. Na3
{[%clk 0:02:53.8]} 7... g5 {[%clk 0:02:33.4]} 8. Nc2 {[%clk 0:02:38.5]} 8... g4
{[%clk 0:02:32.7]} 9. Nfe1 {[%clk 0:02:38.8]} 9... h5 {[%clk 0:02:32.5]} 10. b4
{[%clk 0:02:36.1]} 10... dxc3 {[%clk 0:01:33.6]} 11. b5 {[%clk 0:02:10.4]} 11...
Bd5 {[%clk 0:01:33.3]} 12. dxc3 {[%clk 0:02:03.2]} 12... c4 {[%clk 0:01:33.8]}
13. Be2 {[%clk 0:02:03]} 13... Nd7 {[%clk 0:01:33.9]} 14. f4 {[%clk 0:01:59.7]}
14... Bc5+ {[%clk 0:01:31.9]} 15. Be3 {[%clk 0:01:59.3]} 15... Bxe3+ {[%clk
0:01:26.1]} 16. Nxe3 {[%clk 0:02:00.2]} 16... Qb6 {[%clk 0:01:26.4]} 17. Nc2
{[%clk 0:02:00.4]} 17... Ne7 {[%clk 0:01:24.9]} 18. a4 {[%clk 0:01:54.2]} 18...
O-O-O {[%clk 0:01:23]} 19. Qd4 {[%clk 0:01:50.5]} 19... Kb8 {[%clk 0:01:13.2]}
20. Qxb6 {[%clk 0:01:48.8]} 20... axb6 {[%clk 0:01:07.6]} 21. Bxc4 {[%clk
0:01:35.9]} 21... Bxc4 {[%clk 0:01:00.1]} 22. Nxc4 {[%clk 0:01:36.8]} 22... Rc8
{[%clk 0:01:00.2]} 23. N2e3 {[%clk 0:01:34.9]} 23... Nf5 {[%clk 0:01:00.5]} 24.
Nxf5 {[%clk 0:01:33.7]} 24... Rxc4 {[%clk 0:00:57.2]} 25. Nd6 {[%clk 0:01:31.3]}
25... Rxc3 {[%clk 0:00:57]} 26. Nxf7 {[%clk 0:01:29.5]} 26... Rf8 {[%clk
0:00:57]} 27. Ng5 {[%clk 0:01:28.8]} 27... Nc5 {[%clk 0:00:56.8]} 28. a5 {[%clk
0:01:08]} 28... bxa5 {[%clk 0:00:55]} 29. Rxa5 {[%clk 0:01:08.9]} 29... b6
{[%clk 0:00:28.5]} 30. Ra2 {[%clk 0:01:07.7]} 30... Rd8 {[%clk 0:00:16.8]} 31.
Rfa1 {[%clk 0:00:58.6]} 31... Re8 {[%clk 0:00:09.3]} 32. Ra8+ {[%clk 0:00:57.3]}
32... Kc7 {[%clk 0:00:09.4]} 33. Rxe8 {[%clk 0:00:54.6]} 1-0

[Event "Early-Titled-Tuesday-Blitz-February-27-2024"]
[Site "Chess.com"]
[Date "2024.02.27"]
[Round "7"]
[White "Bkmzzzzz"]
[Black "CarlosjPineror"]
[Result "1-0"]
[WhiteElo "2402"]
[BlackElo "2545"]
[TimeControl "180+1"]
[EndTime "9:15:48 PST"]
[Termination "Bkmzzzzz won by resignation"]

1. e4 {[%clk 0:03:00.9]} 1... c5 {[%clk 0:02:57.9]} 2. Nf3 {[%clk 0:03:00.7]}
2... e6 {[%clk 0:02:58]} 3. d3 {[%clk 0:03:00.6]} 3... Nc6 {[%clk 0:02:57.9]} 4.
g3 {[%clk 0:03:00.6]} 4... d5 {[%clk 0:02:58.6]} 5. Nbd2 {[%clk 0:02:59.9]} 5...
Nf6 {[%clk 0:02:59.2]} 6. Bg2 {[%clk 0:03:00.1]} 6... Be7 {[%clk 0:02:59.3]} 7.
O-O {[%clk 0:03:00]} 7... O-O {[%clk 0:02:59.2]} 8. e5 {[%clk 0:02:59.6]} 8...
Nd7 {[%clk 0:02:59.2]} 9. Re1 {[%clk 0:03:00]} 9... b5 {[%clk 0:02:59.9]} 10. h4
{[%clk 0:02:59]} 10... a5 {[%clk 0:02:59.9]} 11. Nf1 {[%clk 0:02:57.9]} 11... b4
{[%clk 0:02:59.9]} 12. h5 {[%clk 0:02:53.7]} 12... Nd4 {[%clk 0:02:52.5]} 13.
N1h2 {[%clk 0:02:45]} 13... a4 {[%clk 0:02:52]} 14. a3 {[%clk 0:02:44.6]} 14...
b3 {[%clk 0:02:50.2]} 15. Nxd4 {[%clk 0:02:38.8]} 15... cxd4 {[%clk 0:02:50.4]}
16. cxb3 {[%clk 0:02:30.8]} 16... axb3 {[%clk 0:02:51.3]} 17. Qxb3 {[%clk
0:02:29.8]} 17... Ba6 {[%clk 0:02:51.9]} 18. Qd1 {[%clk 0:02:22.9]} 18... Nc5
{[%clk 0:02:52]} 19. Bf1 {[%clk 0:02:19.2]} 19... Qd7 {[%clk 0:02:51.2]} 20. b4
{[%clk 0:02:17.8]} 20... Na4 {[%clk 0:02:51.4]} 21. h6 {[%clk 0:02:14.6]} 21...
g6 {[%clk 0:02:51.3]} 22. Ng4 {[%clk 0:02:06.6]} 22... Rac8 {[%clk 0:02:50.6]}
23. Qf3 {[%clk 0:02:00.2]} 23... Qd8 {[%clk 0:02:45.2]} 24. Qf4 {[%clk
0:01:51.3]} 24... f5 {[%clk 0:02:28]} 25. exf6 {[%clk 0:01:35.4]} 25... Bxf6
{[%clk 0:02:28.4]} 26. Rxe6 {[%clk 0:01:26.1]} 26... Bh8 {[%clk 0:02:27.9]} 27.
Qg5 {[%clk 0:01:16.5]} 27... Bb5 {[%clk 0:02:11.6]} 28. Qxd8 {[%clk 0:01:11.2]}
28... Rfxd8 {[%clk 0:02:12.5]} 29. Bg5 {[%clk 0:01:10.5]} 29... Re8 {[%clk
0:02:08.5]} 30. Rxe8+ {[%clk 0:00:59]} 30... Rxe8 {[%clk 0:02:07.9]} 31. Bg2
{[%clk 0:00:59.1]} 31... Bc6 {[%clk 0:02:03.3]} 32. Nf6+ {[%clk 0:00:44.2]}
32... Bxf6 {[%clk 0:02:01.7]} 33. Bxf6 {[%clk 0:00:45.1]} 33... Nc3 {[%clk
0:02:02.3]} 34. Bf1 {[%clk 0:00:41.3]} 34... Ne2+ {[%clk 0:01:58.4]} 35. Bxe2
{[%clk 0:00:40.5]} 35... Rxe2 {[%clk 0:01:57.9]} 36. Bxd4 {[%clk 0:00:36.3]}
36... Ba4 {[%clk 0:01:52.2]} 37. Rc1 {[%clk 0:00:33.8]} 37... Re7 {[%clk
0:01:42.8]} 38. Rc8+ {[%clk 0:00:31.5]} 38... Kf7 {[%clk 0:01:42.7]} 39. Rc5
{[%clk 0:00:23.7]} 39... Bd1 {[%clk 0:01:29.7]} 40. Kg2 {[%clk 0:00:21.7]} 40...
Bb3 {[%clk 0:01:28.7]} 41. b5 {[%clk 0:00:20.1]} 41... Ke6 {[%clk 0:01:27.1]}
42. b6 {[%clk 0:00:20.3]} 42... Rb7 {[%clk 0:01:26.4]} 43. Rc8 {[%clk
0:00:20.1]} 43... Ba4 {[%clk 0:01:23]} 44. Rg8 {[%clk 0:00:18.2]} 44... Bc2
{[%clk 0:01:18.8]} 45. Rg7 {[%clk 0:00:18.7]} 45... Rb8 {[%clk 0:01:15.4]} 46.
Rxh7 {[%clk 0:00:18.8]} 46... Bxd3 {[%clk 0:01:16.3]} 47. Rg7 {[%clk 0:00:19.1]}
47... g5 {[%clk 0:01:16.9]} 48. h7 {[%clk 0:00:19.1]} 48... Rh8 {[%clk
0:01:17.4]} 49. b7 {[%clk 0:00:19]} 49... Bxh7 {[%clk 0:01:15.8]} 50. Rxh7
{[%clk 0:00:18.7]} 50... Rb8 {[%clk 0:01:15.1]} 51. Rg7 {[%clk 0:00:18.1]} 1-0

[Event "Early-Titled-Tuesday-Blitz-February-27-2024"]
[Site "Chess.com"]
[Date "2024.02.27"]
[Round "7"]
[White "tetrix83"]
[Black "IlanSchnaider"]
[Result "1-0"]
[WhiteElo "2563"]
[BlackElo "2736"]
[TimeControl "180+1"]
[EndTime "9:15:52 PST"]
[Termination "tetrix83 won on time"]

1. e4 {[%clk 0:03:00.9]} 1... c5 {[%clk 0:02:58.3]} 2. Nf3 {[%clk 0:02:59.7]}
2... d6 {[%clk 0:02:58.5]} 3. Bb5+ {[%clk 0:02:58.7]} 3... Bd7 {[%clk
0:02:58.3]} 4. Bxd7+ {[%clk 0:02:58.8]} 4... Qxd7 {[%clk 0:02:59.2]} 5. O-O
{[%clk 0:02:58.5]} 5... Nf6 {[%clk 0:02:58.6]} 6. e5 {[%clk 0:02:56.9]} 6...
dxe5 {[%clk 0:02:57.2]} 7. Nxe5 {[%clk 0:02:57.8]} 7... Qc7 {[%clk 0:02:57.8]}
8. d4 {[%clk 0:02:57.7]} 8... cxd4 {[%clk 0:02:58.2]} 9. Bf4 {[%clk 0:02:57.8]}
9... Qb6 {[%clk 0:02:46.3]} 10. Na3 {[%clk 0:02:48.9]} 10... Nc6 {[%clk
0:02:14.6]} 11. Nac4 {[%clk 0:02:44]} 11... Qc5 {[%clk 0:01:56.3]} 12. Re1
{[%clk 0:02:20]} 12... e6 {[%clk 0:01:46.1]} 13. Qd3 {[%clk 0:02:02.3]} 13...
Be7 {[%clk 0:01:31.8]} 14. Rad1 {[%clk 0:01:53.1]} 14... Rd8 {[%clk 0:01:09.4]}
15. Nxc6 {[%clk 0:01:38.5]} 15... bxc6 {[%clk 0:01:02.8]} 16. Be5 {[%clk
0:01:33]} 16... Qb5 {[%clk 0:00:31.1]} 17. Bxd4 {[%clk 0:01:08.9]} 17... O-O
{[%clk 0:00:15.9]} 18. Qb3 {[%clk 0:01:01.9]} 18... Qf5 {[%clk 0:00:12.3]} 19.
Ne5 {[%clk 0:00:57.9]} 19... Nd5 {[%clk 0:00:07.6]} 20. Nxc6 {[%clk 0:00:55]}
20... Rd7 {[%clk 0:00:05.2]} 21. Qg3 {[%clk 0:00:45.9]} 21... Qg6 {[%clk
0:00:02.1]} 22. c4 {[%clk 0:00:38.8]} 22... Qxg3 {[%clk 0:00:01.8]} 23. hxg3
{[%clk 0:00:38.3]} 23... Nb4 {[%clk 0:00:01.8]} 24. Nxe7+ {[%clk 0:00:38]} 24...
Rxe7 {[%clk 0:00:02.1]} 25. Bc5 {[%clk 0:00:38.6]} 25... Rb7 {[%clk 0:00:01.6]}
26. Bxf8 {[%clk 0:00:37.7]} 26... Kxf8 {[%clk 0:00:02.5]} 27. a3 {[%clk
0:00:36.8]} 27... Nc6 {[%clk 0:00:01.8]} 28. b4 {[%clk 0:00:37.1]} 1-0

[Event "Early-Titled-Tuesday-Blitz-February-27-2024"]
[Site "Chess.com"]
[Date "2024.02.27"]
[Round "7"]
[White "Happy1712Drummer"]
[Black "ReadySkate"]
[Result "0-1"]
[WhiteElo "2385"]
[BlackElo "2543"]
[TimeControl "180+1"]
[EndTime "9:15:53 PST"]
[Termination "ReadySkate won on time"]

1. e4 {[%clk 0:03:00.9]} 1... c5 {[%clk 0:02:40.8]} 2. Nf3 {[%clk 0:02:59.3]}
2... e6 {[%clk 0:02:40.5]} 3. d4 {[%clk 0:02:59.7]} 3... cxd4 {[%clk 0:02:40.2]}
4. Nxd4 {[%clk 0:03:00.6]} 4... Nf6 {[%clk 0:02:40.3]} 5. Nc3 {[%clk 0:02:59.5]}
5... Nc6 {[%clk 0:02:40.8]} 6. Nxc6 {[%clk 0:02:54.3]} 6... bxc6 {[%clk
0:02:41.7]} 7. Bd3 {[%clk 0:02:52.2]} 7... d5 {[%clk 0:02:41.6]} 8. O-O {[%clk
0:02:49.2]} 8... Be7 {[%clk 0:02:41.5]} 9. exd5 {[%clk 0:02:46.6]} 9... cxd5
{[%clk 0:02:41.1]} 10. Bg5 {[%clk 0:02:43.3]} 10... O-O {[%clk 0:02:41.1]} 11.
Re1 {[%clk 0:02:40]} 11... Rb8 {[%clk 0:02:38.9]} 12. b3 {[%clk 0:02:36.7]}
12... Bb4 {[%clk 0:02:37.5]} 13. Bd2 {[%clk 0:02:33.3]} 13... Qa5 {[%clk
0:02:36.3]} 14. Nb1 {[%clk 0:02:19.1]} 14... Ba6 {[%clk 0:02:34.1]} 15. Bxb4
{[%clk 0:02:13.4]} 15... Rxb4 {[%clk 0:02:32.9]} 16. Bxa6 {[%clk 0:01:58]} 16...
Qxa6 {[%clk 0:02:33.8]} 17. Nd2 {[%clk 0:01:55.1]} 17... Rc8 {[%clk 0:02:32.2]}
18. c4 {[%clk 0:01:53.7]} 18... Rbb8 {[%clk 0:02:30.5]} 19. Qf3 {[%clk
0:01:48.9]} 19... Qa5 {[%clk 0:02:27.9]} 20. Red1 {[%clk 0:01:44]} 20... Rd8
{[%clk 0:02:25.7]} 21. h4 {[%clk 0:01:40.1]} 21... d4 {[%clk 0:02:16.9]} 22. Ne4
{[%clk 0:01:35.2]} 22... Nxe4 {[%clk 0:02:12.4]} 23. Qxe4 {[%clk 0:01:36.1]}
23... e5 {[%clk 0:02:10.7]} 24. h5 {[%clk 0:01:25]} 24... h6 {[%clk 0:02:08.8]}
25. Re1 {[%clk 0:01:18.7]} 25... f6 {[%clk 0:02:03.8]} 26. Red1 {[%clk
0:01:13.9]} 26... Qc7 {[%clk 0:01:58]} 27. Rd3 {[%clk 0:01:12.8]} 27... Qf7
{[%clk 0:01:57.1]} 28. Qf5 {[%clk 0:01:07]} 28... a5 {[%clk 0:01:54.4]} 29. Rg3
{[%clk 0:01:03.4]} 29... a4 {[%clk 0:01:51.9]} 30. Rb1 {[%clk 0:01:00.2]} 30...
Kh8 {[%clk 0:01:50.3]} 31. Rc1 {[%clk 0:00:38.7]} 31... axb3 {[%clk 0:01:44.6]}
32. axb3 {[%clk 0:00:38.7]} 32... Re8 {[%clk 0:01:45]} 33. Re1 {[%clk
0:00:29.9]} 33... Qe6 {[%clk 0:01:36.6]} 34. Qg6 {[%clk 0:00:28.3]} 34... Qd7
{[%clk 0:01:34.5]} 35. Rd3 {[%clk 0:00:25.9]} 35... Rf8 {[%clk 0:01:33.5]} 36.
c5 {[%clk 0:00:21.8]} 36... Qf7 {[%clk 0:01:33.3]} 37. Qg4 {[%clk 0:00:20.7]}
37... Rxb3 {[%clk 0:01:30]} 38. Rxb3 {[%clk 0:00:19.5]} 38... Qxb3 {[%clk
0:01:30.9]} 39. Rc1 {[%clk 0:00:17.6]} 39... Qb2 {[%clk 0:01:31.2]} 40. Rd1
{[%clk 0:00:13.7]} 40... Qc2 {[%clk 0:01:30.7]} 41. Ra1 {[%clk 0:00:09.4]} 41...
Qxc5 {[%clk 0:01:27.5]} 42. Qf5 {[%clk 0:00:07.5]} 42... Qc3 {[%clk 0:01:23]}
43. Rb1 {[%clk 0:00:03.9]} 43... Rd8 {[%clk 0:01:20.9]} 44. g3 {[%clk
0:00:02.2]} 44... d3 {[%clk 0:01:21]} 0-1